lending/lending_fUSD_20250114
["ID","MTS","AMOUNT","RATE_DAILY","PERIOD"]
[348911010,1736871067888,-300.0,0.000115,2]
[348911011,1736871067898,-300.0,0.000115,2]
[348911012,1736871067907,-202.8,0.000115,2]
[348911013,1736871067917,-100000.0,0.000115,6]
[348911014,1736871067931,-2980.66,0.00011501,2]
[348911015,1736871067941,-2856.47,0.00011501,2]
[348911016,1736871067951,-500.0,0.00011501,2]
[348911017,1736871067963,-758.96,0.00011501,2]
[348911018,1736871067972,-500.0,0.00011501,2]
[348911019,1736871067982,-500.0,0.00011501,2]
[348911020,1736871067992,-500.0,0.00011501,2]
[348911021,1736871068004,-500.0,0.00011501,2]
[348911022,1736871068013,-500.0,0.00011501,2]
[348911023,1736871068023,-909.28,0.00011501,2]
[348911024,1736871068032,-500.0,0.00011501,2]
[348911025,1736871068042,-500.0,0.00011501,2]
[348911026,1736871068052,-1419.13,0.00011501,2]
[348911027,1736871068062,-580.83,0.00011501,2]
[348911028,1736871068071,-1079.36,0.00011501,2]
[348911029,1736871068081,-500.0,0.00011501,2]
[348911030,1736871068091,-1965.67,0.00011501,2]
[348911031,1736871068101,-781.46,0.00011501,2]
[348911032,1736871068111,-770.01,0.00011501,2]
[348911033,1736871068121,-846.81,0.00011501,2]
[348911034,1736871068130,-500.0,0.00011501,2]
[348911035,1736871068141,-2006.35,0.00011501,2]
[348911036,1736871068152,-654.46,0.00011501,2]
[348911037,1736871068161,-500.0,0.00011501,2]
[348911038,1736871068173,-901.18,0.00011501,2]
[348911039,1736871068183,-500.0,0.00011501,2]
[348911040,1736871068193,-500.0,0.00011501,2]
[348911041,1736871068203,-1306.8,0.00011501,2]
[348911042,1736871068215,-500.0,0.00011501,2]
[348911043,1736871068225,-500.0,0.00011501,2]
[348911044,1736871068235,-500.0,0.00011501,2]
[348911045,1736871068244,-500.0,0.00011501,2]
[348911046,1736871068254,-500.0,0.00011501,2]
[348911047,1736871068263,-3230.9,0.00011501,2]
[348911048,1736871068273,-500.0,0.00011501,2]
[348911049,1736871068283,-635.34,0.00011501,2]
[348911050,1736871068292,-898.98,0.00011501,2]
[348911051,1736871068301,-2567.78,0.00011501,2]
[348911052,1736871068311,-1137.06,0.00011501,2]
[348911053,1736871068320,-3490.51,0.00011501,2]
[348911054,1736871068330,-500.0,0.00011501,2]
[348911055,1736871068339,-500.0,0.00011501,2]
[348911056,1736871068350,-500.0,0.00011501,2]
[348911057,1736871068361,-4025.46,0.00011501,2]
[348911058,1736871068384,-500.0,0.00011501,2]
[348911059,1736871068401,-1007.3,0.00011501,2]
[348911060,1736871068422,-750.73,0.00011501,2]
[348911061,1736871068441,-1091.89,0.00011501,2]
[348911062,1736871068462,-1201.57,0.00011501,2]
[348911063,1736871068477,-500.0,0.00011501,2]
[348911064,1736871068496,-1990.98,0.00011501,2]
[348911065,1736871068515,-500.0,0.00011501,2]
[348911066,1736871068534,-500.0,0.00011501,2]
[348911067,1736871068552,-4203.17,0.00011501,2]
[348911068,1736871068569,-1232.44,0.00011501,2]
[348911069,1736871068586,-794.71,0.00011501,2]
[348911070,1736871068603,-500.0,0.00011501,2]
[348911071,1736871068620,-372.31465525,0.00011501,2]
[348911072,1736871068633,-500.0,0.00011501,2]
[348911073,1736871068651,-500.0,0.00011501,2]
[348911074,1736871068665,-747.81,0.00011501,2]
[348911075,1736871068679,-500.0,0.00011501,2]
[348911076,1736871068697,-867.01,0.00011501,2]
[348911077,1736871068710,-1759.37,0.00011501,2]
[348911078,1736871068725,-500.0,0.00011501,2]
[348911079,1736871068739,-1686.06,0.00011501,2]
[348911080,1736871068753,-780.53,0.00011501,2]
[348911081,1736871068769,-500.0,0.00011501,2]
[348911082,1736871068783,-825.75,0.00011501,2]
[348911083,1736871068798,-1495.35,0.00011501,2]
[348911084,1736871068815,-2775.69,0.00011501,2]
[348911085,1736871068831,-680.38,0.00011501,2]
[348911086,1736871068845,-500.0,0.00011502,2]
[348911087,1736871068859,-500.0,0.00011502,2]
[348911088,1736871068873,-500.0,0.00011502,2]
[348911089,1736871068887,-500.0,0.00011502,2]
[348911090,1736871068901,-500.0,0.00011502,2]
[348911091,1736871068916,-500.0,0.00011502,2]
[348911092,1736871068933,-500.0,0.00011502,2]
[348911093,1736871068946,-500.0,0.00011502,2]
[348911094,1736871068962,-500.0,0.00011502,2]
[348911095,1736871068977,-500.0,0.00011502,2]
[348911096,1736871068991,-500.0,0.00011502,2]
[348911097,1736871069007,-500.0,0.00011502,2]
[348911098,1736871069021,-500.0,0.00011502,2]
[348911099,1736871069035,-500.0,0.00011502,2]
[348911100,1736871069051,-989.66,0.00011502,2]
[348911101,1736871069064,-500.0,0.00011502,2]
[348911102,1736871069078,-500.0,0.00011502,2]
[348911103,1736871069092,-500.0,0.00011502,2]
[348911104,1736871069106,-1178.11,0.00011502,2]
[348911105,1736871069120,-500.0,0.00011502,2]
[348911106,1736871069134,-1018.69,0.00011502,2]
[348911107,1736871069147,-500.0,0.00011502,2]
[348911108,1736871069161,-500.0,0.00011502,2]
[348911109,1736871069175,-1169.13,0.00011502,2]
[348911110,1736871069189,-500.0,0.00011502,2]
[348911111,1736871069202,-500.0,0.00011502,2]
[348911112,1736871069219,-500.0,0.00011502,2]
[348911113,1736871069233,-761.68,0.00011502,2]
[348911114,1736871069247,-500.0,0.00011502,2]
[348911115,1736871069265,-500.0,0.00011502,2]
[348911116,1736871069282,-500.0,0.00011502,2]
[348911117,1736871069297,-500.0,0.00011506,2]
[348911118,1736871069314,-2751.0,0.00011507,2]
[348911119,1736871069329,-500.0,0.00011522,2]
[348911120,1736871069345,-569.16321868,0.00011602,2]
[348911121,1736871069359,-500.0,0.00011602,2]
[348911122,1736871069373,-1181.698318,0.00011602,2]
[348911123,1736871069387,-1134.687651,0.00011602,2]
[348911124,1736871069402,-5067.93,0.00011602,2]
[348911125,1736871069417,-1401.93,0.00011602,2]
[348911126,1736871069432,-772.78,0.00011602,2]
[348911127,1736871069447,-500.0,0.00011602,2]
[348911128,1736871069464,-500.0,0.00011602,2]
[348911129,1736871069473,-5155.07,0.00011602,2]
[348911130,1736871069483,-603.01,0.00011602,2]
[348911131,1736871069492,-224.539635,0.00011603,2]
[348911132,1736871069502,-224.539635,0.00011603,2]
[348911133,1736871069512,-11226.25,0.00011603,2]
[348911134,1736871069521,-1592.98,0.00011603,2]
[348911135,1736871069530,-1029.22,0.00011603,2]
[348911136,1736871069540,-3058.42,0.00011603,2]
[348911137,1736871069549,-500.0,0.00011603,2]
[348911138,1736871069558,-1564.97,0.00011603,2]
[348911139,1736871069568,-2074.04,0.00011603,2]
[348911140,1736871069578,-511.69,0.00011603,2]
[348911141,1736871069588,-1000.0,0.00011603,2]
[348911142,1736871069597,-500.0,0.00011609,2]
[348911143,1736871069606,-2904.81,0.00011609,2]
[348911144,1736871069616,-4220.93,0.00011609,2]
[348911145,1736871069626,-2444.68,0.00011609,2]
[348911146,1736871069635,-500.0,0.00011609,2]
[348911147,1736871069645,-1614.87,0.00011609,2]
[348911148,1736871069654,-4028.3,0.00011609,2]
[348911149,1736871069664,-1618.39,0.00011609,2]
[348911150,1736871069673,-886.17,0.00011609,2]
[348911151,1736871069683,-1130.9,0.00011609,2]
[348911152,1736871069693,-500.0,0.00011609,2]
[348911153,1736871069703,-500.0,0.00011609,2]
[348911154,1736871069714,-729.07,0.00011609,2]
[348911155,1736871069724,-1516.25,0.0001161,2]
[348911156,1736871069733,-1166.86,0.0001161,2]
[348911157,1736871069743,-866.05,0.0001161,2]
[348911158,1736871069752,-2397.33,0.0001161,2]
[348911159,1736871069762,-2203.87,0.0001161,2]
[348911160,1736871069772,-916.24,0.0001161,2]
[348911161,1736871069782,-3485.69,0.0001161,2]
[348911162,1736871069792,-1636.73,0.0001161,2]
[348911163,1736871069802,-3444.85,0.0001161,2]
[348911164,1736871069811,-1321.96,0.0001161,2]
[348911165,1736871069822,-10463.04,0.0001161,2]
[348911166,1736871070193,-1225.56,0.0001161,2]
[348911167,1736871070227,-1265.15,0.0001161,2]
[348911168,1736871070247,-1679.51,0.0001161,2]
[348911169,1736871070259,-1588.58,0.0001161,2]
[348911170,1736871070269,-4193.47,0.0001161,2]
[348911171,1736871070279,-2969.84,0.0001161,2]
[348911172,1736871070288,-1960.51,0.0001161,2]
[348911173,1736871070298,-3425.16,0.0001161,2]
[348911174,1736871070307,-683.13,0.0001161,2]
[348911175,1736871070317,-1742.27,0.0001161,2]
[348911176,1736871070326,-2066.36,0.0001161,2]
[348911177,1736871070337,-936.52,0.0001161,2]
[348911178,1736871070346,-1668.95,0.0001161,2]
[348911179,1736871070357,-2624.9,0.0001161,2]
[348911180,1736871070366,-300.0,0.0001161,2]
[348911181,1736871070376,-1793.98,0.00011611,2]
[348911182,1736871070386,-4746.78,0.00011611,2]
[348911183,1736871070396,-2018.85,0.00011611,2]
[348911184,1736871070406,-500.0,0.00011611,2]
[348911185,1736871070415,-3920.54,0.00011611,2]
[348911186,1736871070424,-500.0,0.00011611,2]
[348911187,1736871070434,-583.25,0.00011611,2]
[348911188,1736871070443,-856.09,0.00011611,2]
[348911189,1736871070453,-1159.82,0.00011611,2]
[348911190,1736871070464,-1932.24,0.00011611,2]
[348911191,1736871070479,-526.42,0.00011611,2]
[348911192,1736871070488,-862.17,0.00011611,2]
[348911193,1736871070498,-1142.27,0.00011611,2]
[348911194,1736871070508,-500.0,0.00011611,2]
[348911195,1736871070518,-1780.43,0.00011611,2]
[348911196,1736871070527,-500.0,0.00011611,2]
[348911197,1736871070537,-500.0,0.00011611,2]
[348911198,1736871070546,-500.0,0.00011611,2]
[348911199,1736871070556,-500.0,0.00011611,2]
[348911200,1736871070566,-500.0,0.00011611,2]
[348911201,1736871070576,-500.0,0.00011611,2]
[348911202,1736871070585,-2.41279389,0.00011611,2]
[348911203,1736871071312,-500.0,9.965e-05,2]
[348911204,1736871071322,-500.0,9.965e-05,2]
[348911205,1736871071332,-330.9122309,9.992e-05,2]
[348911206,1736871071342,-500.0,0.00010239,2]
[348911207,1736871071352,-1620.19,0.0001078,2]
[348911208,1736871071362,-1620.19,0.00011054,2]
[348911209,1736871071372,-1620.19,0.00011328,2]
[348911210,1736871071382,-1620.19,0.00011602,2]
[348911211,1736871071392,-1147.55720611,0.00011611,2]
[348911212,1736871071402,-500.0,0.00011611,2]
[348911213,1736871071411,-1199.59,0.00011611,2]
[348911214,1736871071421,-500.0,0.00011611,2]
[348911215,1736871071431,-1173.44,0.00011611,2]
[348911216,1736871071441,-500.0,0.00011611,2]
[348911217,1736871071451,-500.0,0.00011611,2]
[348911218,1736871071460,-500.0,0.00011611,2]
[348911219,1736871071469,-1112.26,0.00011611,2]
[348911220,1736871071480,-500.0,0.00011611,2]
[348911221,1736871071489,-500.0,0.00011611,2]
[348911222,1736871071499,-2438.93,0.00011611,2]
[348911223,1736871071510,-500.0,0.00011611,2]
[348911224,1736871071520,-500.0,0.00011611,2]
[348911225,1736871071530,-1224.09,0.00011611,2]
[348911226,1736871071540,-500.0,0.00011611,2]
[348911227,1736871071550,-500.0,0.00011611,2]
[348911228,1736871071559,-500.0,0.00011611,2]
[348911229,1736871071569,-500.0,0.00011611,2]
[348911230,1736871071578,-1303.65,0.00011611,2]
[348911231,1736871071588,-500.0,0.00011611,2]
[348911232,1736871071597,-500.0,0.00011611,2]
[348911233,1736871071607,-603.91,0.00011611,2]
[348911234,1736871071617,-682.83404517,0.00011611,2]
[348911235,1736871071630,-595.81595483,0.00011611,2]
[348911236,1736871071640,-428.59135982,0.00011611,2]
[348911237,1736871071652,-71.40864018,0.00011611,2]
[348911238,1736871071662,-290.04497088,0.00011611,2]
[348911239,1736871071674,-209.95502912,0.00011611,2]
[348911240,1736871071684,-824.40047088,0.00011611,2]
[348911241,1736871071697,-403.65952912,0.00011611,2]
[348911242,1736871071707,-500.0,0.00011611,2]
[348911243,1736871071717,-500.0,0.00011611,2]
[348911244,1736871071727,-1408.95,0.00011611,2]
[348911245,1736871071736,-500.0,0.00011611,2]
[348911246,1736871071746,-500.0,0.00011611,2]
[348911247,1736871071757,-500.0,0.00011611,2]
[348911248,1736871071766,-908.24,0.00011611,2]
[348911249,1736871071776,-500.0,0.00011611,2]
[348911250,1736871071786,-500.0,0.00011611,2]
[348911251,1736871071796,-1406.37,0.00011611,2]
[348911252,1736871071806,-500.0,0.00011611,2]
[348911253,1736871071815,-884.27,0.00011611,2]
[348911254,1736871071824,-1171.53,0.00011611,2]
[348911255,1736871071834,-500.0,0.00011611,2]
[348911256,1736871071844,-316.26172029,0.00011611,2]
[348911257,1736871071853,-647.63,0.00011611,2]
[348911258,1736871071862,-355.77609439,0.00011611,2]
[348911259,1736871071872,-1113.11,0.00011611,2]
[348911260,1736871071882,-991.47,0.00011611,2]
[348911261,1736871071892,-500.0,0.00011611,2]
[348911262,1736871071902,-1161.34,0.00011611,2]
[348911263,1736871071911,-1071.23,0.00011611,2]
[348911264,1736871071924,-789.98,0.00011611,2]
[348911265,1736871071935,-500.0,0.00011611,2]
[348911266,1736871071944,-1106.63,0.00011611,2]
[348911267,1736871071953,-500.0,0.00011611,2]
[348911268,1736871071964,-1112.53,0.00011611,2]
[348911269,1736871071974,-1838.88,0.00011611,2]
[348911270,1736871071984,-932.16,0.00011611,2]
[348911271,1736871071994,-500.0,0.00011611,2]
[348911272,1736871072004,-500.0,0.00011611,2]
[348911273,1736871072014,-500.0,0.00011611,2]
[348911274,1736871072023,-500.0,0.00011611,2]
[348911275,1736871072033,-500.0,0.00011611,2]
[348911276,1736871072043,-500.0,0.00011611,2]
[348911277,1736871072053,-976.4,0.00011611,2]
[348911278,1736871072063,-1337.66,0.00011611,2]
[348911279,1736871072072,-500.0,0.00011611,2]
[348911280,1736871072081,-572.39,0.00011611,2]
[348911281,1736871072092,-500.0,0.00011611,2]
[348911282,1736871072101,-758.83,0.00011611,2]
[348911283,1736871072111,-1232.64,0.00011611,2]
[348911284,1736871072122,-500.0,0.00011611,2]
[348911285,1736871072132,-1161.72,0.00011611,2]
[348911286,1736871072141,-500.0,0.00011611,2]
[348911287,1736871072151,-1402.03,0.00011611,2]
[348911288,1736871072161,-500.0,0.00011611,2]
[348911289,1736871072171,-416.66579786,0.00011611,2]
[348911290,1736871072195,-83.33420214,0.00011611,2]
[348911291,1736871072205,-500.0,0.00011611,2]
[348911292,1736871072216,-1098.11,0.00011611,2]
[348911293,1736871072226,-3138.43,0.00011611,2]
[348911294,1736871072236,-500.0,0.00011611,2]
[348911295,1736871072246,-659.72,0.00011611,2]
[348911296,1736871072256,-986.15,0.00011611,2]
[348911297,1736871072267,-500.0,0.00011611,2]
[348911298,1736871072277,-500.0,0.00011611,2]
[348911299,1736871072287,-500.0,0.00011611,2]
[348911300,1736871072297,-500.0,0.00011611,2]
[348911301,1736871072308,-1032.34,0.00011611,2]
[348911302,1736871072317,-1783.93231969,0.00011611,2]
[348911303,1736871072330,-1668.97768031,0.00011611,2]
[348911304,1736871072340,-547.38,0.00011611,2]
[348911305,1736871072350,-1606.61,0.00011611,2]
[348911306,1736871072360,-500.0,0.00011611,2]
[348911307,1736871072370,-500.0,0.00011611,2]
[348911308,1736871072380,-1003.31,0.00011611,2]
[348911309,1736871072390,-979.54,0.00011611,2]
[348911310,1736871072400,-756.85,0.00011611,2]
[348911311,1736871072410,-4038.71,0.00011611,2]
[348911312,1736871072420,-1623.91,0.00011611,2]
[348911313,1736871072430,-500.0,0.00011611,2]
[348911314,1736871072440,-507.27,0.00011611,2]
[348911315,1736871072450,-500.0,0.00011611,2]
[348911316,1736871072462,-500.0,0.00011611,2]
[348911317,1736871072473,-263.83281359,0.00011611,2]
[348911318,1736871072485,-1702.80718641,0.00011611,2]
[348911319,1736871072495,-986.12,0.00011611,2]
[348911320,1736871072504,-157.92300409,0.00011612,2]
[348911321,1736871072524,-153.0,9.915e-05,2]
[348911322,1736871072534,-963.19699591,0.00011612,2]
[348911323,1736871072544,-500.0,0.00011612,2]
[348911324,1736871072553,-2873.51,0.00011612,2]
[348911325,1736871072562,-2691.6,0.00011612,2]
[348911326,1736871072571,-151.0,0.00011613,2]
[348911327,1736871072581,-1760.13569846,0.00011624,2]
[348911328,1736871072591,-3648.35,0.00011642,2]
[348911329,1736871072600,-500.0,0.00011643,2]
[348911330,1736871072610,-1024.77,0.00011643,2]
[348911331,1736871072619,-1209.3409,0.000117,2]
[348911332,1736871072628,-300.0,0.00011774,2]
[348911333,1736871072658,-300.0,0.00011774,2]
[348911334,1736871072667,-300.0,0.00011774,2]
[348911335,1736871072677,-300.0,0.00011774,2]
[348911336,1736871072687,-300.0,0.00011774,2]
[348911337,1736871072696,-300.0,0.00011774,2]
[348911338,1736871072706,-2856.47,0.00011775,2]
[348911339,1736871072718,-758.96,0.00011775,2]
[348911340,1736871072727,-500.0,0.00011775,2]
[348911341,1736871072736,-500.0,0.00011775,2]
[348911342,1736871072746,-500.0,0.00011775,2]
[348911343,1736871072756,-500.0,0.00011775,2]
[348911344,1736871072765,-909.28,0.00011775,2]
[348911345,1736871072774,-500.0,0.00011775,2]
[348911346,1736871072783,-500.0,0.00011775,2]
[348911347,1736871072794,-1419.13,0.00011775,2]
[348911348,1736871072803,-580.83,0.00011775,2]
[348911349,1736871072813,-1079.36,0.00011775,2]
[348911350,1736871072823,-500.0,0.00011775,2]
[348911351,1736871072832,-781.46,0.00011775,2]
[348911352,1736871072841,-1965.67,0.00011775,2]
[348911353,1736871072850,-770.01,0.00011775,2]
[348911354,1736871072861,-846.81,0.00011775,2]
[348911355,1736871072870,-500.0,0.00011775,2]
[348911356,1736871072880,-2006.35,0.00011775,2]
[348911357,1736871072889,-654.46,0.00011775,2]
[348911358,1736871072898,-500.0,0.00011775,2]
[348911359,1736871072908,-901.18,0.00011775,2]
[348911360,1736871072917,-500.0,0.00011775,2]
[348911361,1736871072931,-500.0,0.00011775,2]
[348911362,1736871072940,-1306.8,0.00011775,2]
[348911363,1736871072950,-500.0,0.00011775,2]
[348911364,1736871072961,-500.0,0.00011775,2]
[348911365,1736871072971,-500.0,0.00011775,2]
[348911366,1736871072981,-500.0,0.00011775,2]
[348911367,1736871072990,-500.0,0.00011775,2]
[348911368,1736871073000,-3230.9,0.00011775,2]
[348911369,1736871073010,-469.05636148,0.00011775,2]
[348911370,1736871073019,-635.34,0.00011775,2]
[348911371,1736871073029,-898.98,0.00011775,2]
[348911372,1736871073039,-2567.78,0.00011775,2]
[348911373,1736871073048,-1137.06,0.00011775,2]
[348911374,1736871073057,-3490.51,0.00011775,2]
[348911375,1736871073067,-500.0,0.00011775,2]
[348911376,1736871073076,-500.0,0.00011775,2]
[348911377,1736871073086,-500.0,0.00011775,2]
[348911378,1736871073097,-4025.46,0.00011775,2]
[348911379,1736871073106,-500.0,0.00011775,2]
[348911380,1736871073115,-1007.3,0.00011775,2]
[348911381,1736871073125,-750.73,0.00011775,2]
[348911382,1736871073135,-1091.89,0.00011775,2]
[348911383,1736871073144,-1201.57,0.00011775,2]
[348911384,1736871073154,-500.0,0.00011775,2]
[348911385,1736871073163,-1990.98,0.00011775,2]
[348911386,1736871073173,-500.0,0.00011775,2]
[348911387,1736871073183,-4203.17,0.00011775,2]
[348911388,1736871073191,-1232.44,0.00011775,2]
[348911389,1736871073201,-794.71,0.00011775,2]
[348911390,1736871073214,-500.0,0.00011775,2]
[348911391,1736871073224,-500.0,0.00011775,2]
[348911392,1736871073234,-747.81,0.00011775,2]
[348911393,1736871073244,-500.0,0.00011775,2]
[348911394,1736871073254,-867.01,0.00011775,2]
[348911395,1736871073264,-1759.37,0.00011775,2]
[348911396,1736871073273,-500.0,0.00011775,2]
[348911397,1736871073283,-1686.06,0.00011775,2]
[348911398,1736871073293,-780.53,0.00011775,2]
[348911399,1736871073302,-825.75,0.00011775,2]
[348911400,1736871073312,-1495.35,0.00011775,2]
[348911401,1736871073321,-2775.69,0.00011775,2]
[348911402,1736871073331,-680.38,0.00011775,2]
[348911403,1736871073340,-500.0,0.00011776,2]
[348911404,1736871073350,-500.0,0.00011776,2]
[348911405,1736871073359,-515.25598147,0.00011776,2]
[348911406,1736871073368,-500.0,0.00011776,2]
[348911407,1736871073378,-500.0,0.00011776,2]
[348911408,1736871073388,-500.0,0.00011776,2]
[348911409,1736871073398,-355.78836594,0.00011776,2]
[348911410,1736871073407,-500.0,0.00011776,2]
[348911411,1736871073417,-500.0,0.00011776,2]
[348911412,1736871073601,-989.66,0.00011776,2]
[348911413,1736871073624,-500.0,0.00011776,2]
[348911414,1736871073634,-500.0,0.00011776,2]
[348911415,1736871073644,-1178.11,0.00011776,2]
[348911416,1736871073653,-500.0,0.00011776,2]
[348911417,1736871073662,-1018.69,0.00011776,2]
[348911418,1736871073672,-223.99941147,0.00011776,2]
[348911419,1736871073681,-500.0,0.00011776,2]
[348911420,1736871073691,-1169.13,0.00011776,2]
[348911421,1736871073701,-511.05056489,0.00011776,2]
[348911422,1736871073712,-500.0,0.00011776,2]
[348911423,1736871073722,-500.0,0.00011776,2]
[348911424,1736871073732,-761.68,0.00011776,2]
[348911425,1736871073741,-500.0,0.00011776,2]
[348911426,1736871073752,-500.0,0.00011776,2]
[348911427,1736871073761,-500.0,0.00011776,2]
[348911428,1736871073771,-500.0,0.0001178,2]
[348911429,1736871073780,-800.0,0.0001178,2]
[348911430,1736871073789,-7800.0,0.0001178,2]
[348911431,1736871073799,-2900.0,0.0001178,2]
[348911432,1736871073809,-185.55550232,0.00011802,2]
[348911433,1736871073819,-1982.02132263,0.00011841,2]
[348911434,1736871073828,-500.0,0.00011876,2]
[348911435,1736871073838,-1134.687651,0.00011876,2]
[348911436,1736871073847,-5067.93,0.00011876,2]
[348911437,1736871073857,-1401.93,0.00011876,2]
[348911438,1736871073867,-772.78,0.00011876,2]
[348911439,1736871073877,-500.0,0.00011876,2]
[348911440,1736871073888,-500.0,0.00011876,2]
[348911441,1736871073897,-5155.07,0.00011876,2]
[348911442,1736871073908,-603.01,0.00011876,2]
[348911443,1736871073918,-1620.19,0.00011876,2]
[348911444,1736871073930,-11226.25,0.00011877,2]
[348911445,1736871073940,-1592.98,0.00011877,2]
[348911446,1736871073950,-1029.22,0.00011877,2]
[348911447,1736871073964,-3058.42,0.00011877,2]
[348911448,1736871073974,-500.0,0.00011877,2]
[348911449,1736871073983,-1564.97,0.00011877,2]
[348911450,1736871073993,-2074.04,0.00011877,2]
[348911451,1736871074003,-1000.0,0.00011877,2]
[348911452,1736871074014,-385.12816666,0.00011883,2]
[348911453,1736871074024,-2904.81,0.00011883,2]
[348911454,1736871074033,-4220.93,0.00011883,2]
[348911455,1736871074043,-2444.68,0.00011883,2]
[348911456,1736871074053,-500.0,0.00011883,2]
[348911457,1736871074063,-1614.87,0.00011883,2]
[348911458,1736871074073,-4028.3,0.00011883,2]
[348911459,1736871074082,-1618.39,0.00011883,2]
[348911460,1736871074092,-886.17,0.00011883,2]
[348911461,1736871074102,-1130.9,0.00011883,2]
[348911462,1736871074111,-500.0,0.00011883,2]
[348911463,1736871074122,-500.0,0.00011883,2]
[348911464,1736871074131,-729.07,0.00011883,2]
[348911465,1736871074141,-1516.25,0.00011884,2]
[348911466,1736871074151,-1166.86,0.00011884,2]
[348911467,1736871074162,-866.05,0.00011884,2]
[348911468,1736871074172,-2203.87,0.00011884,2]
[348911469,1736871074181,-916.24,0.00011884,2]
[348911470,1736871074191,-3485.69,0.00011884,2]
[348911471,1736871074200,-1636.73,0.00011884,2]
[348911472,1736871074212,-3444.85,0.00011884,2]
[348911473,1736871074223,-1321.96,0.00011884,2]
[348911474,1736871074233,-10463.04,0.00011884,2]
[348911475,1736871074242,-1265.15,0.00011884,2]
[348911476,1736871074251,-1225.56,0.00011884,2]
[348911477,1736871074262,-1679.51,0.00011884,2]
[348911478,1736871074272,-1588.58,0.00011884,2]
[348911479,1736871074281,-4193.47,0.00011884,2]
[348911480,1736871074291,-2969.84,0.00011884,2]
[348911481,1736871074300,-1960.51,0.00011884,2]
[348911482,1736871074309,-3425.16,0.00011884,2]
[348911483,1736871074319,-683.13,0.00011884,2]
[348911484,1736871074331,-1742.27,0.00011884,2]
[348911485,1736871074340,-2066.36,0.00011884,2]
[348911486,1736871074349,-936.52,0.00011884,2]
[348911487,1736871074359,-1668.95,0.00011884,2]
[348911488,1736871074368,-2624.9,0.00011884,2]
[348911489,1736871074378,-300.0,0.00011884,2]
[348911490,1736871074387,-1793.98,0.00011885,2]
[348911491,1736871074396,-4746.78,0.00011885,2]
[348911492,1736871074406,-2018.85,0.00011885,2]
[348911493,1736871074415,-500.0,0.00011885,2]
[348911494,1736871074424,-3920.54,0.00011885,2]
[348911495,1736871074433,-583.25,0.00011885,2]
[348911496,1736871074442,-856.09,0.00011885,2]
[348911497,1736871074452,-1159.82,0.00011885,2]
[348911498,1736871074466,-1932.24,0.00011885,2]
[348911499,1736871074475,-526.42,0.00011885,2]
[348911500,1736871074485,-862.17,0.00011885,2]
[348911501,1736871074494,-1142.27,0.00011885,2]
[348911502,1736871074503,-500.0,0.00011885,2]
[348911503,1736871074513,-1780.43,0.00011885,2]
[348911504,1736871074523,-500.0,0.00011885,2]
[348911505,1736871074532,-500.0,0.00011885,2]
[348911506,1736871074541,-500.0,0.00011885,2]
[348911507,1736871074550,-301.95406937,0.00011885,2]
[348911508,1736871074559,-500.0,0.00011885,2]
[348911509,1736871074568,-500.0,0.00011885,2]